fUST/lending_fUST_20240819
["ID","MTS","AMOUNT","RATE_DAILY","PERIOD"]
[335280639,1724064698085,-500.0,0.00020273,2]
[335280640,1724064698095,-531.9,0.00020273,2]
[335280641,1724064698109,-670.44,0.00020273,2]
[335280642,1724064698119,-2085.01,0.00020273,2]
[335280643,1724064698129,-608.01,0.00020273,2]
[335280644,1724064698138,-972.73,0.00020273,2]
[335280645,1724064698148,-627.13,0.00020273,2]
[335280646,1724064698158,-549.6,0.00020273,2]
[335280647,1724064698167,-571.47,0.00020273,2]
[335280648,1724064698177,-500.0,0.00020273,2]
[335280649,1724064698187,-500.0,0.00020273,2]
[335280650,1724064698197,-509.54,0.00020273,2]
[335280651,1724064698206,-1192.27,0.00020273,2]
[335280652,1724064698215,-833.76,0.00020273,2]
[335280653,1724064698225,-868.49,0.00020273,2]
[335280654,1724064698234,-571.66549453,0.00020273,2]
[335280655,1724064698243,-541.44,0.00020273,2]
[335280656,1724064698252,-680.14,0.00020273,2]
[335280657,1724064698262,-677.35,0.00020273,2]
[335280658,1724064698272,-1037.09,0.00020273,2]
[335280659,1724064698282,-764.95,0.00020273,2]
[335280660,1724064698291,-3205.11,0.00020273,2]
[335280661,1724064698301,-629.33,0.00020273,2]
[335280662,1724064698311,-500.0,0.00020273,2]
[335280663,1724064698320,-500.0,0.00020273,2]
[335280664,1724064698329,-509.52204724,0.00020273,2]
[335280665,1724064698339,-618.15,0.00020273,2]
[335280666,1724064698349,-788.89,0.00020273,2]
[335280667,1724064698359,-501.1,0.00020273,2]
[335280668,1724064698369,-945.19,0.00020273,2]
[335280669,1724064698380,-868.42,0.00020273,2]
[335280670,1724064698390,-500.0,0.00020273,2]
[335280671,1724064698400,-924.86,0.00020273,2]
[335280672,1724064698410,-1050.73,0.00020273,2]
[335280673,1724064698419,-673.9,0.00020273,2]
[335280674,1724064698429,-571.61,0.00020273,2]
[335280675,1724064698439,-819.39,0.00020273,2]
[335280676,1724064698448,-513.12,0.00020273,2]
[335280677,1724064698458,-500.0,0.00020273,2]
[335280678,1724064698467,-500.0,0.00020273,2]
[335280679,1724064698477,-1257.31,0.00020273,2]
[335280680,1724064698486,-651.1,0.00020273,2]
[335280681,1724064698496,-800.57,0.00020273,2]
[335280682,1724064698505,-643.17,0.00020273,2]
[335280683,1724064698515,-500.0,0.00020273,2]
[335280684,1724064698525,-500.0,0.00020273,2]
[335280685,1724064698535,-891.67,0.00020273,2]
[335280686,1724064698545,-500.0,0.00020273,2]
[335280687,1724064698554,-734.44,0.00020273,2]
[335280688,1724064698564,-500.0,0.00020273,2]
[335280689,1724064698574,-500.0,0.00020273,2]
[335280690,1724064698584,-596.48,0.00020273,2]
[335280691,1724064698594,-991.23,0.00020273,2]
[335280692,1724064698603,-975.86,0.00020273,2]
[335280693,1724064698613,-1381.03,0.00020273,2]
[335280694,1724064698623,-502.85,0.00020273,2]
[335280695,1724064698633,-500.0,0.00020273,2]
[335280696,1724064698643,-530.34,0.00020273,2]
[335280697,1724064698653,-704.69,0.00020273,2]
[335280698,1724064698663,-883.26,0.00020273,2]
[335280699,1724064698672,-652.07,0.00020273,2]
[335280700,1724064698682,-613.05,0.00020273,2]
[335280701,1724064698692,-351.22014847,0.00020273,2]
[335280702,1724064698702,-644.74,0.00020273,2]
[335280703,1724064698711,-500.0,0.00020273,2]
[335280704,1724064698722,-500.0,0.00020273,2]
[335280705,1724064698732,-500.0,0.00020273,2]
[335280706,1724064698743,-500.0,0.00020273,2]
[335280707,1724064698754,-500.0,0.00020273,2]
[335280708,1724064698766,-627.32,0.00020273,2]
[335280709,1724064698776,-768.77,0.00020273,2]
[335280710,1724064698786,-1030.7,0.00020273,2]
[335280711,1724064698796,-751.5,0.00020273,2]
[335280712,1724064698806,-669.42,0.00020273,2]
[335280713,1724064698817,-563.42,0.00020273,2]
[335280714,1724064698828,-500.0,0.00020273,2]
[335280715,1724064698840,-563.05,0.00020273,2]
[335280716,1724064698851,-630.47232434,0.00020273,2]
[335280717,1724064698860,-615.21875627,0.00020273,2]
[335280718,1724064698870,-500.0,0.00020273,2]
[335280719,1724064698881,-1159.42,0.00020273,2]
[335280720,1724064698891,-1058.32,0.00020273,2]
[335280721,1724064698903,-500.0,0.00020273,2]
[335280722,1724064698913,-500.0,0.00020273,2]
[335280723,1724064698923,-835.22,0.00020273,2]
[335280724,1724064698934,-1036.0,0.00020273,2]
[335280725,1724064698943,-500.0,0.00020273,2]
[335280726,1724064698953,-1629.15,0.00020273,2]
[335280727,1724064698963,-874.96,0.00020273,2]
[335280728,1724064698973,-679.46,0.00020273,2]
[335280729,1724064698983,-714.72,0.00020273,2]
[335280730,1724064698993,-650.75,0.00020273,2]
[335280731,1724064699004,-2792.23,0.00020273,2]
[335280732,1724064699014,-500.0,0.00020273,2]
[335280733,1724064699024,-500.0,0.00020273,2]
[335280734,1724064699034,-1304.87,0.00020273,2]
[335280735,1724064699044,-685.38,0.00020273,2]
[335280736,1724064699054,-999.6,0.00020273,2]
[335280737,1724064699064,-547.37,0.00020273,2]
[335280738,1724064699073,-625.23,0.00020273,2]
[335280739,1724064699084,-500.0,0.00020273,2]
[335280740,1724064699094,-1241.89,0.00020273,2]
[335280741,1724064699105,-545.07,0.00020273,2]
[335280742,1724064699115,-500.0,0.00020273,2]
[335280743,1724064699125,-500.0,0.00020273,2]
[335280744,1724064699135,-1810.25,0.00020273,2]
[335280745,1724064699146,-1703.86,0.00020273,2]
[335280746,1724064699155,-1465.02,0.00020273,2]
[335280747,1724064699165,-548.12,0.00020273,2]
[335280748,1724064699175,-500.0,0.00020273,2]
[335280749,1724064699186,-810.71,0.00020273,2]
[335280750,1724064699196,-2823.37,0.00020273,2]
[335280751,1724064699206,-500.0,0.00020273,2]
[335280752,1724064699216,-500.0,0.00020273,2]
[335280753,1724064699226,-1950.34,0.00020273,2]
[335280754,1724064699235,-766.64,0.00020273,2]
[335280755,1724064699246,-1677.1,0.00020273,2]
[335280756,1724064699256,-611.4,0.00020273,2]
[335280757,1724064699265,-628.62,0.00020273,2]
[335280758,1724064699275,-531.03,0.00020273,2]
[335280759,1724064699285,-500.0,0.00020273,2]
[335280760,1724064699295,-500.0,0.00020273,2]
[335280761,1724064699304,-1530.73,0.00020273,2]
[335280762,1724064699314,-754.52,0.00020273,2]
[335280763,1724064699324,-575.88,0.00020273,2]
[335280764,1724064699333,-955.98,0.00020273,2]
[335280765,1724064699342,-574.44,0.00020273,2]
[335280766,1724064699353,-731.1,0.00020273,2]
[335280767,1724064699362,-6498.62,0.00020273,2]
[335280768,1724064699371,-500.0,0.00020273,2]
[335280769,1724064699381,-500.0,0.00020273,2]
[335280770,1724064699390,-6412.2,0.00020273,2]
[335280771,1724064699399,-500.0,0.00020273,2]
[335280772,1724064699409,-1017.23,0.00020273,2]
[335280773,1724064699419,-500.0,0.00020273,2]
[335280774,1724064699429,-1833.35,0.00020273,2]
[335280775,1724064699439,-500.0,0.00020273,2]
[335280776,1724064699450,-500.0,0.00020273,2]
[335280777,1724064699460,-866.32,0.00020273,2]
[335280778,1724064699471,-1076.73,0.00020273,2]
[335280779,1724064699482,-1738.28,0.00020273,2]
[335280780,1724064699492,-552.95,0.00020273,2]
[335280781,1724064699503,-591.99,0.00020273,2]
[335280782,1724064699514,-556.23,0.00020273,2]
[335280783,1724064699524,-1070.93,0.00020273,2]
[335280784,1724064699536,-500.0,0.00020273,2]
[335280785,1724064699546,-500.0,0.00020273,2]
[335280786,1724064699666,-500.0,0.00020273,2]
[335280787,1724064699676,-1404.09,0.00020273,2]
[335280788,1724064699686,-527.24,0.00020273,2]
[335280789,1724064699696,-4166.87,0.00020273,2]
[335280790,1724064699706,-549.76,0.00020273,2]
[335280791,1724064699717,-952.17,0.00020273,2]
[335280792,1724064699728,-523.47,0.00020273,2]
[335280793,1724064699738,-19615.05,0.00020273,2]
[335280794,1724064699751,-500.0,0.00020273,2]
[335280795,1724064699764,-967.54,0.00020273,2]
[335280796,1724064699774,-1409.16,0.00020273,2]
[335280797,1724064699784,-5418.3,0.00020273,2]
[335280798,1724064699795,-500.0,0.00020273,2]
[335280799,1724064699805,-500.0,0.00020273,2]
[335280800,1724064699815,-500.0,0.00020273,2]
[335280801,1724064699826,-3020.65,0.00020273,2]
[335280802,1724064699839,-2059.25,0.00020273,2]
[335280803,1724064699851,-6249.43,0.00020273,2]
[335280804,1724064699864,-1358.47,0.00020273,2]
[335280805,1724064699875,-1833.6,0.00020273,2]
[335280806,1724064699885,-695.24,0.00020273,2]
[335280807,1724064699895,-1406.0,0.00020273,2]
[335280808,1724064699905,-521.48,0.00020273,2]
[335280809,1724064699914,-1476.87,0.00020273,2]
[335280810,1724064699925,-1523.28,0.00020273,2]
[335280811,1724064699935,-2266.85,0.00020273,2]
[335280812,1724064699945,-1215.95,0.00020273,2]
[335280813,1724064699956,-734.72,0.00020273,2]
[335280814,1724064699968,-729.24,0.00020273,2]
[335280815,1724064699980,-2145.28,0.00020273,2]
[335280816,1724064699990,-500.0,0.00020273,2]
[335280817,1724064700001,-1474.66,0.00020273,2]
[335280818,1724064700010,-612.11,0.00020273,2]
[335280819,1724064700020,-2313.4,0.00020273,2]
[335280820,1724064700031,-1177.26,0.00020273,2]
[335280821,1724064700042,-573.54,0.00020273,2]
[335280822,1724064700051,-500.0,0.00020273,2]
[335280823,1724064700062,-470.66166418,0.00020273,2]
[335280824,1724064700075,-560.41,0.00020273,2]
[335280825,1724064700087,-2216.78,0.00020273,2]
[335280826,1724064700099,-1514.7,0.00020273,2]
[335280827,1724064700110,-835.68,0.00020273,2]
[335280828,1724064700121,-3105.81,0.00020273,2]
[335280829,1724064700133,-595.88,0.00020273,2]
[335280830,1724064700145,-1084.05,0.00020273,2]
[335280831,1724064700157,-500.0,0.00020273,2]
[335280832,1724064700168,-3685.64,0.00020273,2]
[335280833,1724064700178,-597.54,0.00020273,2]
[335280834,1724064700189,-2913.53,0.00020273,2]
[335280835,1724064700200,-1064.67,0.00020273,2]
[335280836,1724064700210,-1144.09,0.00020273,2]
[335280837,1724064700219,-146813.0,0.00020377,2]
[335280838,1724064700229,-465.00008822,0.0002042,2]
[335280839,1724064700240,-999.1,0.00020547,2]
[335280840,1724064700250,-635.16,0.00020547,2]
[335280841,1724064700262,-591.86,0.00020547,2]
[335280842,1724064700274,-500.0,0.00020547,2]
[335280843,1724064700284,-500.0,0.00020547,2]
[335280844,1724064700294,-566.51,0.00020547,2]
[335280845,1724064700303,-500.0,0.00020547,2]
[335280846,1724064700312,-500.0,0.00020547,2]
[335280847,1724064700322,-589.34539234,0.00020547,2]
[335280848,1724064700331,-500.0,0.00020547,2]
[335280849,1724064700341,-604.56,0.00020547,2]
[335280850,1724064700351,-1036.27,0.00020547,2]
[335280851,1724064700360,-876.01,0.00020547,2]
[335280852,1724064700370,-920.14,0.00020547,2]
[335280853,1724064700381,-500.0,0.00020547,2]
[335280854,1724064700391,-924.92,0.00020547,2]
[335280855,1724064700402,-500.0,0.00020547,2]
[335280856,1724064700414,-500.0,0.00020547,2]
[335280857,1724064700425,-884.77,0.00020547,2]
[335280858,1724064700436,-1525.26,0.00020547,2]
[335280859,1724064700448,-1240.07,0.00020547,2]
[335280860,1724064700459,-500.0,0.00020547,2]
[335280861,1724064700469,-531.9,0.00020547,2]
[335280862,1724064700481,-670.44,0.00020547,2]
[335280863,1724064700492,-2085.01,0.00020547,2]
[335280864,1724064700503,-608.01,0.00020547,2]
[335280865,1724064700514,-972.73,0.00020547,2]
[335280866,1724064700526,-627.13,0.00020547,2]
[335280867,1724064700537,-549.6,0.00020547,2]
[335280868,1724064700546,-571.47,0.00020547,2]
[335280869,1724064700557,-500.0,0.00020547,2]
[335280870,1724064700567,-405.33802586,0.00020547,2]
[335280871,1724064700576,-509.54,0.00020547,2]
[335280872,1724064700585,-1192.27,0.00020547,2]
[335280873,1724064700595,-833.76,0.00020547,2]
[335280874,1724064700605,-868.49,0.00020547,2]
[335280875,1724064700615,-541.44,0.00020547,2]
[335280876,1724064700624,-680.14,0.00020547,2]
[335280877,1724064700634,-677.35,0.00020547,2]
[335280878,1724064700644,-1037.09,0.00020547,2]
[335280879,1724064700654,-764.95,0.00020547,2]
[335280880,1724064700663,-3205.11,0.00020547,2]
[335280881,1724064700673,-629.33,0.00020547,2]
[335280882,1724064700683,-500.0,0.00020547,2]
[335280883,1724064700694,-500.0,0.00020547,2]
[335280884,1724064700704,-618.15,0.00020547,2]
[335280885,1724064700716,-788.89,0.00020547,2]
[335280886,1724064700727,-501.1,0.00020547,2]
[335280887,1724064700738,-945.19,0.00020547,2]
[335280888,1724064700750,-868.42,0.00020547,2]
[335280889,1724064700767,-500.0,0.00020547,2]
[335280890,1724064700779,-924.86,0.00020547,2]
[335280891,1724064700789,-1050.73,0.00020547,2]
[335280892,1724064700801,-673.9,0.00020547,2]
[335280893,1724064700818,-571.61,0.00020547,2]
[335280894,1724064700828,-819.39,0.00020547,2]
[335280895,1724064700839,-513.12,0.00020547,2]
[335280896,1724064700848,-500.0,0.00020547,2]
[335280897,1724064700858,-500.0,0.00020547,2]
[335280898,1724064700868,-1257.31,0.00020547,2]
[335280899,1724064700878,-651.1,0.00020547,2]
[335280900,1724064700888,-800.57,0.00020547,2]
[335280901,1724064700898,-643.17,0.00020547,2]
[335280902,1724064700907,-500.0,0.00020547,2]
[335280903,1724064700917,-500.0,0.00020547,2]
[335280904,1724064700927,-891.67,0.00020547,2]
[335280905,1724064700937,-500.0,0.00020547,2]
[335280906,1724064700948,-734.44,0.00020547,2]
[335280907,1724064700959,-500.0,0.00020547,2]
[335280908,1724064700969,-500.0,0.00020547,2]
[335280909,1724064700980,-596.48,0.00020547,2]
[335280910,1724064700990,-991.23,0.00020547,2]
[335280911,1724064701002,-975.86,0.00020547,2]
[335280912,1724064701018,-1381.03,0.00020547,2]
[335280913,1724064701028,-502.85,0.00020547,2]
[335280914,1724064701039,-500.0,0.00020547,2]
[335280915,1724064701049,-530.34,0.00020547,2]
[335280916,1724064701059,-704.69,0.00020547,2]
[335280917,1724064701069,-883.26,0.00020547,2]
[335280918,1724064701080,-652.07,0.00020547,2]
[335280919,1724064701092,-613.05,0.00020547,2]
[335280920,1724064701102,-644.74,0.00020547,2]
[335280921,1724064701114,-500.0,0.00020547,2]
[335280922,1724064701126,-262.29613771,0.00020547,2]
[335280923,1724064701136,-342.02206867,0.00020547,2]
[335280924,1724064701147,-500.0,0.00020547,2]
[335280925,1724064701157,-482.88379208,0.00020547,2]
[335280926,1724064701168,-627.32,0.00020547,2]
[335280927,1724064701179,-768.77,0.00020547,2]
[335280928,1724064701190,-1030.7,0.00020547,2]
[335280929,1724064701201,-751.5,0.00020547,2]
[335280930,1724064701212,-669.42,0.00020547,2]
[335280931,1724064701222,-563.42,0.00020547,2]
[335280932,1724064701233,-500.0,0.00020547,2]
[335280933,1724064701243,-563.05,0.00020547,2]
[335280934,1724064701253,-500.0,0.00020547,2]
[335280935,1724064701262,-1159.42,0.00020547,2]
[335280936,1724064701272,-1058.32,0.00020547,2]
[335280937,1724064701281,-500.0,0.00020547,2]
[335280938,1724064701291,-500.0,0.00020547,2]
[335280939,1724064701301,-835.22,0.00020547,2]
[335280940,1724064701311,-1036.0,0.00020547,2]
[335280941,1724064701320,-500.0,0.00020547,2]
[335280942,1724064701330,-1629.15,0.00020547,2]
[335280943,1724064701341,-874.96,0.00020547,2]
[335280944,1724064701352,-679.46,0.00020547,2]
[335280945,1724064701362,-714.72,0.00020547,2]
[335280946,1724064701371,-650.75,0.00020547,2]
[335280947,1724064701381,-2792.23,0.00020547,2]
[335280948,1724064701391,-504.42175918,0.00020547,2]
[335280949,1724064701400,-500.0,0.00020547,2]
[335280950,1724064701410,-1304.87,0.00020547,2]
[335280951,1724064701421,-685.38,0.00020547,2]
[335280952,1724064701430,-999.6,0.00020547,2]
[335280953,1724064701440,-547.37,0.00020547,2]
[335280954,1724064701452,-625.23,0.00020547,2]
[335280955,1724064701462,-500.0,0.00020547,2]
[335280956,1724064701472,-1241.89,0.00020547,2]
[335280957,1724064701483,-545.07,0.00020547,2]
[335280958,1724064701493,-500.0,0.00020547,2]
[335280959,1724064701503,-500.0,0.00020547,2]
[335280960,1724064701513,-1810.25,0.00020547,2]
[335280961,1724064701523,-1703.86,0.00020547,2]
[335280962,1724064701534,-1465.02,0.00020547,2]
[335280963,1724064701544,-548.12,0.00020547,2]
[335280964,1724064701555,-500.0,0.00020547,2]
[335280965,1724064701566,-810.71,0.00020547,2]
[335280966,1724064701576,-2823.37,0.00020547,2]
[335280967,1724064701585,-500.0,0.00020547,2]
[335280968,1724064701607,-500.0,0.00020547,2]
[335280969,1724064701618,-1950.34,0.00020547,2]
[335280970,1724064701629,-766.64,0.00020547,2]
[335280971,1724064701640,-1677.1,0.00020547,2]
[335280972,1724064701653,-611.4,0.00020547,2]
[335280973,1724064701663,-628.62,0.00020547,2]
[335280974,1724064701674,-531.03,0.00020547,2]
[335280975,1724064701685,-500.0,0.00020547,2]
[335280976,1724064701695,-500.0,0.00020547,2]
[335280977,1724064701706,-1530.73,0.00020547,2]
[335280978,1724064701717,-754.52,0.00020547,2]
[335280979,1724064701728,-575.88,0.00020547,2]
[335280980,1724064701738,-955.98,0.00020547,2]
[335280981,1724064701747,-574.44,0.00020547,2]
[335280982,1724064701760,-731.1,0.00020547,2]
[335280983,1724064701771,-6498.62,0.00020547,2]
[335280984,1724064701780,-500.0,0.00020547,2]
[335280985,1724064701792,-6412.2,0.00020547,2]
[335280986,1724064701949,-500.0,0.00020547,2]
[335280987,1724064701970,-500.0,0.00020547,2]
[335280988,1724064701980,-1017.23,0.00020547,2]
[335280989,1724064701990,-500.0,0.00020547,2]
[335280990,1724064702000,-1833.35,0.00020547,2]
[335280991,1724064702010,-500.0,0.00020547,2]
[335280992,1724064702019,-514.23845675,0.00020547,2]
[335280993,1724064702030,-866.32,0.00020547,2]
[335280994,1724064702040,-1738.28,0.00020547,2]
[335280995,1724064702051,-552.95,0.00020547,2]
[335280996,1724064702062,-1076.73,0.00020547,2]
[335280997,1724064702072,-591.99,0.00020547,2]
[335280998,1724064702083,-556.23,0.00020547,2]
[335280999,1724064702095,-1070.93,0.00020547,2]
[335281000,1724064702107,-500.0,0.00020547,2]
[335281001,1724064702120,-500.0,0.00020547,2]
[335281002,1724064702132,-500.0,0.00020547,2]
[335281003,1724064702143,-1404.09,0.00020547,2]
[335281004,1724064702152,-527.24,0.00020547,2]
[335281005,1724064702163,-4166.87,0.00020547,2]
[335281006,1724064702173,-549.76,0.00020547,2]
[335281007,1724064702184,-952.17,0.00020547,2]
[335281008,1724064702195,-523.47,0.00020547,2]
[335281009,1724064702205,-19615.05,0.00020547,2]
[335281010,1724064702216,-500.0,0.00020547,2]
[335281011,1724064702228,-967.54,0.00020547,2]
[335281012,1724064702239,-1409.16,0.00020547,2]
[335281013,1724064702251,-5418.3,0.00020547,2]
[335281014,1724064702261,-500.0,0.00020547,2]
[335281015,1724064702271,-503.88432997,0.00020547,2]
[335281016,1724064702281,-263.58786423,0.00020547,2]
[335281017,1724064702290,-3020.65,0.00020547,2]
[335281018,1724064702300,-2059.25,0.00020547,2]
[335281019,1724064702310,-6249.43,0.00020547,2]
[335281020,1724064702321,-1358.47,0.00020547,2]
[335281021,1724064702331,-1833.6,0.00020547,2]
[335281022,1724064702346,-695.24,0.00020547,2]
[335281023,1724064702359,-1406.0,0.00020547,2]
[335281024,1724064702369,-521.48,0.00020547,2]
[335281025,1724064702380,-1476.87,0.00020547,2]
[335281026,1724064702391,-1523.28,0.00020547,2]
[335281027,1724064702406,-2266.85,0.00020547,2]
[335281028,1724064702418,-1215.95,0.00020547,2]
[335281029,1724064702429,-734.72,0.00020547,2]
[335281030,1724064702440,-729.24,0.00020547,2]
[335281031,1724064702451,-2145.28,0.00020547,2]
[335281032,1724064702461,-500.0,0.00020547,2]
[335281033,1724064702471,-1474.66,0.00020547,2]
[335281034,1724064702481,-612.11,0.00020547,2]
[335281035,1724064702492,-2313.4,0.00020547,2]
[335281036,1724064702502,-1177.26,0.00020547,2]
[335281037,1724064702512,-573.54,0.00020547,2]
[335281038,1724064702522,-500.0,0.00020547,2]
[335281039,1724064702532,-560.41,0.00020547,2]
[335281040,1724064702542,-2216.78,0.00020547,2]
[335281041,1724064702551,-1514.7,0.00020547,2]
[335281042,1724064702561,-835.68,0.00020547,2]
[335281043,1724064702572,-3105.81,0.00020547,2]
[335281044,1724064702583,-595.88,0.00020547,2]
[335281045,1724064702594,-1084.05,0.00020547,2]
[335281046,1724064702605,-500.0,0.00020547,2]
[335281047,1724064702617,-3685.64,0.00020547,2]
[335281048,1724064702628,-2913.53,0.00020547,2]
[335281049,1724064702640,-597.54,0.00020547,2]
[335281050,1724064702651,-1064.67,0.00020547,2]
[335281051,1724064702663,-1144.09,0.00020547,2]
[335281052,1724064702675,-600.0,0.00020646,2]
[335281053,1724064702687,-400.7532893,0.00020646,2]
[335281054,1724064702699,-600.0,0.00020646,2]
[335281055,1724064702710,-194.32833,0.00020707,2]
[335281056,1724064702721,-5000.0,0.00020796,2]
[335281057,1724064702731,-999.1,0.00020821,2]
[335281058,1724064702743,-635.16,0.00020821,2]
[335281059,1724064702756,-591.86,0.00020821,2]
[335281060,1724064702769,-500.0,0.00020821,2]
[335281061,1724064702779,-233.28031044,0.00020821,2]
[335281062,1724064702790,-566.51,0.00020821,2]
[335281063,1724064702800,-500.0,0.00020821,2]
[335281064,1724064702810,-500.0,0.00020821,2]
[335281065,1724064702819,-500.0,0.00020821,2]
[335281066,1724064702829,-604.56,0.00020821,2]
[335281067,1724064702840,-1036.27,0.00020821,2]
[335281068,1724064702851,-876.01,0.00020821,2]
[335281069,1724064702868,-920.14,0.00020821,2]
[335281070,1724064702879,-500.0,0.00020821,2]
[335281071,1724064702890,-924.92,0.00020821,2]
[335281072,1724064702904,-500.0,0.00020821,2]
[335281073,1724064702916,-591.39596925,0.00020821,2]
[335281074,1724064702928,-884.77,0.00020821,2]
[335281075,1724064702939,-1525.26,0.00020821,2]
[335281076,1724064702950,-1240.07,0.00020821,2]
[335281077,1724064702960,-500.0,0.00020821,2]
[335281078,1724064702971,-531.9,0.00020821,2]
[335281079,1724064702981,-670.44,0.00020821,2]
[335281080,1724064702990,-2085.01,0.00020821,2]
[335281081,1724064703002,-608.01,0.00020821,2]
[335281082,1724064703011,-972.73,0.00020821,2]
[335281083,1724064703021,-627.13,0.00020821,2]
[335281084,1724064703031,-549.6,0.00020821,2]
[335281085,1724064703041,-571.47,0.00020821,2]
[335281086,1724064703052,-500.0,0.00020821,2]
[335281087,1724064703062,-509.54,0.00020821,2]
[335281088,1724064703072,-1192.27,0.00020821,2]
[335281089,1724064703081,-833.76,0.00020821,2]
[335281090,1724064703091,-868.49,0.00020821,2]
[335281091,1724064703100,-541.44,0.00020821,2]
[335281092,1724064703111,-680.14,0.00020821,2]
[335281093,1724064703120,-677.35,0.00020821,2]
[335281094,1724064703130,-1037.09,0.00020821,2]
[335281095,1724064703140,-764.95,0.00020821,2]
[335281096,1724064703150,-3205.11,0.00020821,2]
[335281097,1724064703160,-629.33,0.00020821,2]
[335281098,1724064703170,-500.0,0.00020821,2]
[335281099,1724064703181,-500.0,0.00020821,2]
[335281100,1724064703191,-618.15,0.00020821,2]
[335281101,1724064703202,-788.89,0.00020821,2]
[335281102,1724064703212,-501.1,0.00020821,2]
[335281103,1724064703221,-945.19,0.00020821,2]
[335281104,1724064703231,-868.42,0.00020821,2]
[335281105,1724064703240,-500.0,0.00020821,2]
[335281106,1724064703250,-924.86,0.00020821,2]
[335281107,1724064703261,-1050.73,0.00020821,2]
[335281108,1724064703271,-673.9,0.00020821,2]
[335281109,1724064703281,-571.61,0.00020821,2]
[335281110,1724064703291,-819.39,0.00020821,2]
[335281111,1724064703302,-513.12,0.00020821,2]
[335281112,1724064703312,-500.0,0.00020821,2]
[335281113,1724064703324,-500.0,0.00020821,2]
[335281114,1724064703334,-1257.31,0.00020821,2]
[335281115,1724064703345,-651.1,0.00020821,2]
[335281116,1724064703356,-800.57,0.00020821,2]
[335281117,1724064703367,-643.17,0.00020821,2]
[335281118,1724064703377,-500.0,0.00020821,2]
[335281119,1724064703390,-500.0,0.00020821,2]
[335281120,1724064703401,-891.67,0.00020821,2]
[335281121,1724064703412,-500.0,0.00020821,2]
[335281122,1724064703424,-734.44,0.00020821,2]
[335281123,1724064703435,-500.0,0.00020821,2]
[335281124,1724064703445,-519.86750652,0.00020821,2]
[335281125,1724064703454,-596.48,0.00020821,2]
[335281126,1724064703464,-991.23,0.00020821,2]
[335281127,1724064703473,-975.86,0.00020821,2]
[335281128,1724064703483,-1381.03,0.00020821,2]
[335281129,1724064703495,-502.85,0.00020821,2]
[335281130,1724064703506,-500.0,0.00020821,2]
[335281131,1724064703519,-530.34,0.00020821,2]
[335281132,1724064703532,-704.69,0.00020821,2]
[335281133,1724064703543,-883.26,0.00020821,2]
[335281134,1724064703553,-652.07,0.00020821,2]
[335281135,1724064703565,-613.05,0.00020821,2]
[335281136,1724064703576,-644.74,0.00020821,2]
[335281137,1724064703588,-500.0,0.00020821,2]
[335281138,1724064703599,-500.0,0.00020821,2]